bitfinex/quotes_ETHUSD_20240823
["timestamp","ask_amount","ask_price","bid_price","bid_amount"]
[1724392425562,3.0,2676.9,2676.7,4.2486]
[1724392425891,6.73539,2677.1,2676.7,4.2486]
[1724392426252,3.0,2677.1,2676.7,4.2486]
[1724392426559,3.0,2677.2,2676.7,4.2486]
[1724392427189,3.0,2677.3,2676.7,4.2486]
[1724392427483,3.73511,2677.3,2676.7,4.2486]
[1724392427798,3.0,2677.2,2676.7,4.2486]
[1724392430064,6.73525,2677.2,2676.7,4.2486]
[1724392431069,6.73525,2677.2,2676.8,18.79023076]
[1724392431266,7.67899,2677.1,2676.8,18.79023076]
[1724392431481,3.73566,2676.9,2676.8,18.79023076]
[1724392431681,6.73566,2676.9,2676.8,18.79023076]
[1724392432996,3.0,2676.9,2676.8,18.79023076]
[1724392433495,6.73559,2677.0,2676.8,18.79023076]
[1724392434596,3.0,2677.0,2676.8,18.79023076]
[1724392435095,0.39090093,2677.4,2676.8,22.74953076]
[1724392435096,3.73512,2677.3,2676.8,22.74953076]
[1724392435400,3.0,2677.2,2676.8,22.74953076]
[1724392435961,6.73525,2677.2,2676.8,22.74953076]
[1724392436157,3.7354,2677.1,2676.8,22.74953076]
[1724392436473,3.0,2677.0,2676.8,22.74953076]
[1724392437068,3.0,2677.0,2676.9,18.79023076]
[1724392438458,6.73552,2677.0,2676.9,18.79023076]
[1724392439712,3.0,2677.0,2676.9,18.79023076]
[1724392439914,3.73552,2677.0,2676.9,18.79023076]
[1724392440115,6.73552,2677.0,2676.9,18.79023076]
[1724392441701,6.73453834,2677.0,2676.9,18.79023076]
[1724392442399,3.0,2677.0,2676.9,18.79023076]
[1724392443100,3.0,2677.0,2676.7,18.79023076]
[1724392443303,3.0,2677.1,2676.8,2.27512308]
[1724392443503,6.73538,2677.1,2676.7,18.79023076]
[1724392444408,3.0,2677.1,2676.7,18.79023076]
[1724392448103,6.73538,2677.1,2676.7,18.79023076]
[1724392448672,3.73553,2677.0,2676.7,18.79023076]
[1724392448876,3.0,2676.9,2676.7,18.79023076]
[1724392449140,3.0,2676.9,2676.8,18.79023076]
[1724392449970,6.73566,2676.9,2676.8,18.79023076]
[1724392451520,6.73566,2676.9,2676.2,18.79023076]
[1724392451521,3.73612,2676.6,2676.2,18.79023076]
[1724392451733,7.47231,2676.6,2676.2,18.79023076]
[1724392452297,3.73622,2676.5,2676.2,18.79023076]
[1724392452791,3.73608,2676.6,2676.2,18.79023076]
[1724392453236,3.73608,2676.6,2676.2,20.66925384]
[1724392453937,0.39091087,2676.5,2676.2,20.66925384]
[1724392454123,3.0,2676.7,2676.2,20.66925384]
[1724392454317,0.39091187,2676.5,2676.2,20.66925384]
[1724392454730,0.39091187,2676.5,2676.3,0.85845477]
[1724392454969,0.39091187,2676.5,2676.3,19.64868553]
[1724392456180,0.39091187,2676.5,2676.3,23.59898553]
[1724392456518,3.0,2676.9,2676.3,23.59898553]
[1724392456723,4.1537,2677.3,2676.4,3.9503]
[1724392456724,3.0,2677.0,2676.4,3.9503]
[1724392457061,3.0,2677.2,2676.6,4.2492]
[1724392457825,6.73524,2677.2,2676.6,4.2492]
[1724392458528,3.0,2677.2,2676.6,4.2492]
[1724392459131,3.0,2677.2,2676.7,18.79023076]
[1724392459344,3.0,2677.2,2676.8,2.30394308]
[1724392459747,10.47062,2677.2,2676.8,2.30394308]
[1724392459956,10.47062,2677.2,2676.7,18.79023076]
[1724392460533,3.73538,2677.1,2676.7,18.79023076]
[1724392460872,3.73572,2676.9,2676.7,18.79023076]
[1724392462170,3.7358,2676.8,2676.7,18.79023076]
[1724392462367,3.7358,2676.8,2676.1,18.79023076]
[1724392462368,3.73631,2676.5,2676.1,18.79023076]
[1724392462883,3.73618,2676.6,2676.1,18.79023076]
[1724392463867,3.0,2676.7,2676.1,18.79023076]
[1724392464293,6.73597,2676.7,2676.1,18.79023076]
[1724392464441,6.73597,2676.7,2676.2,2.28836308]
[1724392466201,3.0,2676.7,2676.2,2.28836308]
[1724392466360,3.0,2676.8,2676.2,2.28836308]
[1724392466548,3.0,2676.8,2676.3,4.1335]
[1724392466893,3.0,2676.8,2676.4,19.43241707]
[1724392467946,7.8613114,2677.3,2676.5,3.8815]
[1724392468142,4.1260814,2677.3,2676.5,3.8815]
[1724392468573,3.73541,2677.1,2676.5,3.8815]
[1724392468774,3.73541,2677.1,2676.5,6.21289171]
[1724392469249,6.73554,2677.0,2676.5,6.21289171]
[1724392470549,3.0,2677.0,2676.5,6.21289171]
[1724392471150,6.7356,2677.0,2676.5,6.21289171]
[1724392472266,0.39086876,2676.9,2676.5,6.21289171]
[1724392472472,0.39086876,2676.9,2676.6,1.78858957]
[1724392472869,0.39086876,2676.9,2676.6,20.57882033]
[1724392473785,0.39086876,2676.9,2676.7,3.98]
[1724392474301,0.39086876,2676.9,2676.7,22.77023076]
[1724392475606,0.39086876,2676.9,2676.7,18.79023076]
[1724392478708,4.12652876,2676.9,2676.8,18.79023076]
[1724392478910,7.12652876,2676.9,2676.8,18.79023076]
[1724392482994,3.39086876,2676.9,2676.8,18.79023076]
[1724392483144,0.39086876,2676.9,2676.8,18.79023076]
[1724392484705,0.39086876,2676.9,2676.6,18.79023076]
[1724392484887,0.39086876,2676.9,2676.6,21.06884384]
[1724392489525,0.39086876,2676.9,2676.6,18.79023076]
[1724392490653,0.39086876,2676.9,2676.7,18.79023076]
[1724392494340,7.6726,2676.8,2676.7,18.79023076]
[1724392494674,3.73666,2676.2,2675.8,3.8696]
[1724392494891,1.09957717,2676.0,2675.9,18.79023076]
[1724392495099,3.73666,2676.2,2675.9,18.79023076]
[1724392495100,4.83623717,2676.2,2675.9,18.79023076]
[1724392495255,3.73678,2676.1,2675.9,18.79023076]
[1724392495452,3.0,2676.0,2675.9,18.79023076]
[1724392496151,10.47384,2676.0,2675.9,18.79023076]
[1724392496355,11.57341717,2676.0,2675.9,18.79023076]
[1724392496678,7.83649717,2676.0,2675.9,18.79023076]
[1724392497086,11.57341717,2676.0,2675.9,18.79023076]
[1724392499601,3.73711,2675.9,2675.6,18.79023076]
[1724392499804,3.0,2675.8,2675.6,18.79023076]
[1724392500380,3.0,2675.8,2675.6,21.06343384]
[1724392500568,3.0,2676.0,2675.6,21.06343384]
[1724392500930,6.73692,2676.0,2675.6,21.06343384]
[1724392501395,6.73692,2676.0,2675.6,18.79023076]
[1724392501396,1.09957717,2675.7,2675.6,18.79023076]
[1724392501703,1.09957717,2675.9,2675.7,3.8595]
[1724392502891,6.73699,2676.0,2675.7,3.8595]
[1724392504980,3.0,2676.0,2675.7,3.8595]
[1724392505180,3.73616,2676.6,2675.9,5.17837717]
[1724392505384,5.22650626,2676.7,2676.0,4.0788]
[1724392505595,3.73559,2677.0,2676.3,1.09957717]
[1724392505924,3.73538,2677.1,2676.5,4.0788]
[1724392506147,7.47085,2677.1,2676.5,4.0788]
[1724392506290,4.83511717,2677.0,2676.5,4.0788]
[1724392506486,4.83511717,2677.0,2676.5,6.52744457]
[1724392508504,3.73554,2677.0,2676.5,6.52744457]
[1724392508851,3.0,2676.9,2676.5,6.52744457]
[1724392508985,6.73567,2676.9,2676.5,6.52744457]
[1724392509182,6.73567,2676.9,2676.5,4.0788]
[1724392509407,6.73567,2676.9,2676.4,18.79023076]
[1724392510103,10.47141,2676.9,2676.4,18.79023076]
[1724392510297,6.73567,2676.9,2676.4,18.79023076]
[1724392510848,6.73567,2676.9,2676.3,4.0703]
[1724392510849,3.0,2676.9,2676.5,18.79023076]
[1724392511055,3.0,2677.0,2676.6,1.87902308]
[1724392511698,6.73559,2677.0,2676.5,18.79023076]
[1724392512828,3.0,2677.0,2676.5,18.79023076]
[1724392513211,6.73539,2677.1,2676.6,3.954]
[1724392514438,6.73539,2677.1,2676.7,18.79023076]
[1724392514927,3.0,2677.1,2676.7,18.79023076]
[1724392515131,3.0,2677.1,2676.8,1.91909676]
[1724392515621,3.0,2677.2,2676.8,1.91909676]
[1724392515811,3.0,2677.3,2676.8,1.91909676]
[1724392516218,6.7351,2677.3,2676.8,1.91909676]
[1724392517467,10.47028,2677.3,2676.8,1.91909676]
[1724392518032,3.73525,2677.2,2676.8,1.91909676]
[1724392518224,3.0,2677.1,2676.8,1.91909676]
[1724392518426,3.73557,2677.0,2676.7,18.79023076]
[1724392518626,3.0,2676.9,2676.7,18.79023076]
[1724392520460,3.0,2676.9,2676.8,18.79023076]
[1724392520846,6.73566,2676.9,2676.8,18.79023076]
[1724392521033,3.0,2676.9,2676.8,18.79023076]
[1724392521234,3.39083473,2676.9,2676.8,18.79023076]
[1724392521434,0.39083473,2676.9,2676.8,18.79023076]
[1724392522786,4.12649473,2676.9,2676.8,18.79023076]
[1724392523063,3.39083473,2676.9,2676.8,18.79023076]
[1724392525342,0.39083473,2676.9,2676.8,18.79023076]
[1724392526249,0.39083473,2676.9,2676.7,18.79023076]
[1724392527160,6.73545,2677.1,2676.7,18.79023076]
[1724392527368,3.73554,2677.0,2676.7,18.79023076]
[1724392527677,3.0,2676.9,2676.7,18.79023076]
[1724392529575,3.0,2677.0,2676.7,18.79023076]
[1724392530571,1.0997428,2676.9,2676.7,18.79023076]
[1724392532285,1.0997428,2676.9,2676.8,18.79023076]
[1724392538389,1.0997428,2677.1,2676.8,18.79023076]
[1724392539190,1.0997428,2677.1,2676.9,4.1332]
[1724392539355,1.0997428,2677.1,2676.9,22.92343076]
[1724392540707,1.0997428,2677.1,2676.9,18.79023076]
[1724392541392,4.0997428,2677.1,2676.9,18.79023076]
[1724392541695,3.8407,2677.0,2676.9,18.79023076]
[1724392541893,10.57622,2677.0,2676.9,18.79023076]
[1724392542586,10.96706291,2677.0,2676.9,18.79023076]
[1724392543008,3.39084291,2677.0,2676.9,18.79023076]
[1724392544203,3.39084291,2677.0,2676.4,18.79023076]
[1724392544399,4.0997428,2676.9,2676.4,21.08266384]
[1724392546301,4.0997428,2676.9,2676.4,18.79023076]
[1724392549796,1.0997428,2676.9,2676.4,18.79023076]
[1724392550192,1.0997428,2676.9,2676.5,18.79023076]
[1724392555907,4.0997428,2676.9,2676.5,18.79023076]
[1724392556233,4.0997428,2676.9,2676.6,18.79023076]
[1724392556932,7.7110428,2676.9,2676.6,18.79023076]
[1724392561730,4.0997428,2676.9,2676.6,18.79023076]
[1724392561935,1.0997428,2676.9,2676.6,18.79023076]
[1724392562135,0.39083007,2676.8,2676.7,18.79023076]
[1724392564546,0.39083007,2676.8,2676.7,24.19545384]
[1724392564917,4.0997428,2677.2,2676.7,24.19545384]
[1724392566572,7.8350028,2677.2,2676.7,24.19545384]
[1724392566872,7.8350028,2677.2,2676.7,22.31643076]
[1724392567971,7.8350028,2677.2,2676.8,18.79023076]
[1724392568900,1.0997428,2677.0,2676.8,18.79023076]
[1724392570285,1.0997428,2677.0,2676.8,22.38363076]
[1724392571506,1.0997428,2677.1,2676.8,22.38363076]
[1724392572768,1.0997428,2677.1,2676.8,18.79023076]
[1724392572967,1.0997428,2676.9,2676.8,18.79023076]
[1724392573188,4.0997428,2676.9,2676.8,18.79023076]
[1724392574140,7.8010428,2676.9,2676.8,18.79023076]
[1724392574809,11.5367028,2676.9,2676.8,18.79023076]
[1724392575820,7.8010428,2676.9,2676.8,18.79023076]
[1724392577440,4.0997428,2676.9,2676.8,18.79023076]
[1724392578927,1.0997428,2676.9,2676.8,18.79023076]
[1724392579812,1.0997428,2676.9,2676.5,18.79023076]
[1724392580428,3.5048,2676.5,2675.8,2.26497308]
[1724392580603,1.0997428,2676.2,2675.6,3.7297]
[1724392584286,3.0,2676.4,2675.7,1.0997428]
[1724392584451,1.0997428,2676.5,2675.8,3.5819]
[1724392584787,1.0997428,2676.5,2676.0,3.5819]
[1724392584957,1.0997428,2676.7,2676.0,3.5819]
[1724392585157,3.0,2676.8,2676.0,3.5819]
[1724392585371,0.39089402,2676.7,2676.0,3.5819]
[1724392585573,0.39089402,2676.7,2675.9,5.30494708]
[1724392585574,1.0997428,2677.1,2676.2,3.4752]
[1724392585759,1.0997428,2677.1,2676.4,3.4515]
[1724392585947,1.0997428,2676.9,2676.4,3.4515]
[1724392587764,4.0997428,2677.1,2676.4,3.4515]
[1724392587987,4.0997428,2677.1,2676.5,2.22417308]
[1724392588888,4.0997428,2677.1,2676.6,18.79023076]
[1724392590661,7.8351328,2677.1,2676.6,18.79023076]
[1724392591514,1.0997428,2676.9,2676.6,18.79023076]
[1724392593106,6.73539,2677.1,2676.6,18.79023076]
[1724392593276,1.0997428,2676.9,2676.6,18.79023076]
[1724392593474,1.0997428,2676.9,2676.6,21.01440384]
[1724392594329,1.0997428,2676.9,2676.6,18.79023076]
[1724392594681,1.0997428,2676.9,2676.7,18.79023076]
[1724392594882,6.73539,2677.1,2676.7,18.79023076]
[1724392595123,1.0997428,2677.0,2676.7,18.79023076]
[1724392599271,3.0,2677.1,2676.8,3.6638]
[1724392599591,3.0,2677.1,2676.9,18.79023076]
[1724392599810,4.0997428,2677.2,2676.9,18.79023076]
[1724392600833,1.0997428,2677.2,2676.9,18.79023076]
[1724392601208,0.39087102,2677.1,2676.9,18.79023076]
[1724392603824,0.39087102,2677.1,2677.0,18.79023076]
[1724392604026,1.49061382,2677.1,2677.0,18.79023076]
[1724392607411,1.0997428,2677.1,2677.0,18.79023076]
[1724392608259,4.0997428,2677.1,2677.0,18.79023076]
[1724392616936,7.8351228,2677.1,2677.0,18.79023076]
[1724392617475,8.22600785,2677.1,2677.0,18.79023076]
[1724392618177,7.8351228,2677.1,2677.0,18.79023076]
[1724392621608,3.73552,2677.0,2676.8,18.79023076]
[1724392621762,4.0997428,2676.9,2676.8,18.79023076]
[1724392622379,4.0997428,2676.9,2675.9,4.06386428]
[1724392622380,3.4338,2676.8,2675.9,4.06386428]
[1724392622556,1.0997428,2676.2,2675.9,3.5957]
[1724392624881,3.0,2676.5,2675.9,3.5957]
[1724392625054,1.0997428,2676.8,2676.2,3.7125]
[1724392625253,3.0,2676.9,2676.4,3.7125]
[1724392625455,4.0997428,2677.0,2676.4,3.7125]
[1724392626062,3.0,2677.0,2676.4,3.7125]
[1724392626377,1.0997428,2677.0,2676.4,3.7125]
[1724392630383,1.0997428,2677.0,2676.5,18.79023076]
[1724392630680,1.0997428,2677.0,2676.7,3.4866]
[1724392632145,1.0997428,2677.0,2676.5,22.28073076]
[1724392632351,1.0997428,2676.8,2676.5,22.28073076]
[1724392636400,1.0997428,2676.8,2676.6,18.79023076]
[1724392639817,0.39087663,2676.9,2676.6,18.79023076]
[1724392640003,0.39087663,2676.9,2676.6,21.01830384]
[1724392640512,0.39087663,2676.9,2676.8,3.644]
[1724392640812,0.39087663,2676.9,2676.8,22.43423076]
[1724392642128,0.39087663,2676.9,2676.8,18.79023076]
[1724392642431,1.49061943,2676.9,2676.8,18.79023076]
[1724392651608,0.39087663,2676.9,2676.8,18.79023076]
[1724392651933,0.39087663,2676.9,2676.8,24.28815384]
[1724392653799,0.39087663,2676.9,2676.8,22.40913076]
[1724392654798,0.39087663,2676.9,2676.8,18.79023076]
[1724392659963,1.0329428,2677.0,2676.8,18.79023076]
[1724392663355,1.0329428,2677.0,2676.9,18.79023076]
[1724392663764,3.0,2677.1,2676.9,18.79023076]
[1724392663913,0.97707227,2677.7,2677.0,6.38286588]
[1724392664120,0.39085397,2677.7,2677.2,3.4041]
[1724392664478,0.39085397,2677.7,2677.4,3.4041]
[1724392664691,0.39085397,2677.7,2677.6,3.73468]
[1724392664982,7.36476,2679.4,2678.1,7.13797]
[1724392665182,1.0997428,2679.1,2678.2,1.0997428]
[1724392665485,1.0997428,2679.1,2678.2,1.92352708]
[1724392666024,1.0997428,2678.9,2678.2,1.92352708]
[1724392666218,3.73246,2679.2,2678.2,1.92352708]
[1724392666446,1.0997428,2679.0,2678.2,1.92352708]
[1724392667048,1.0997428,2679.0,2678.2,0.82378428]
[1724392667370,1.0997428,2679.0,2678.3,0.42278843]
[1724392668727,6.73261,2679.1,2678.3,0.42278843]
[1724392669045,3.73274,2679.0,2678.3,0.42278843]
[1724392669240,3.0,2678.9,2678.3,0.42278843]
[1724392670278,6.73289,2678.9,2678.3,0.42278843]
[1724392670601,3.0,2678.9,2678.3,0.42278843]
[1724392671600,6.7329,2678.9,2678.3,0.42278843]
[1724392672155,6.7329,2678.9,2678.4,18.79023076]
[1724392672356,6.7329,2678.9,2678.4,20.71153268]
[1724392672746,3.0,2678.9,2678.4,20.71153268]
[1724392673857,6.71949,2679.1,2678.4,20.71153268]
[1724392674479,3.73276,2679.0,2678.4,20.71153268]
[1724392674678,7.46561,2679.0,2678.4,20.71153268]
[1724392675075,3.73276,2679.0,2678.4,20.71153268]
[1724392675376,3.73276,2679.0,2678.5,2.11343211]
[1724392676072,3.0,2678.9,2678.5,2.11343211]
[1724392677576,3.0,2678.9,2678.6,2.9993]
[1724392678309,6.73288,2678.9,2678.6,2.9993]
[1724392678610,3.0,2678.9,2678.6,2.9993]
[1724392680727,3.73301,2678.8,2678.4,18.79023076]
[1724392680920,3.73301,2678.8,2678.4,20.99811268]
[1724392682168,3.0,2678.9,2678.4,20.99811268]
[1724392682686,6.73289,2678.9,2678.4,20.99811268]
[1724392683223,3.0,2678.9,2678.5,2.8145]
[1724392683445,3.0,2678.9,2678.5,5.23804011]
[1724392686524,6.73289,2678.9,2678.5,2.8145]
[1724392686926,6.71459,2678.9,2678.5,2.8145]
[1724392689474,1.0980326,2678.8,2678.5,2.8145]
[1724392689842,1.0980326,2678.8,2678.6,18.79023076]
[1724392695876,1.0800326,2678.8,2678.7,18.79023076]
[1724392696979,13.34394,2678.9,2678.7,18.79023076]
[1724392697178,8.5640526,2678.8,2678.7,18.79023076]
[1724392697553,11.5640526,2678.8,2678.7,18.79023076]
[1724392697759,15.2970626,2678.8,2678.7,17.7353702]
[1724392697984,18.58228376,2678.8,2678.7,17.7353702]
[1724392698147,18.58228376,2678.8,2678.7,17.24761301]
[1724392699882,19.13228376,2678.8,2678.7,17.24761301]
[1724392701873,7.46777,2678.2,2677.9,17.24761301]
[1724392702048,8.5658026,2678.2,2678.0,17.24761301]
[1724392702252,3.7342,2678.0,2677.7,17.24761301]
[1724392702565,3.7342,2678.0,2677.8,17.24761301]
[1724392702566,4.8322326,2678.0,2677.8,17.24761301]
[1724392702959,1.0980326,2678.0,2677.8,17.24761301]
[1724392703164,4.0980326,2678.0,2677.8,17.24761301]
[1724392704193,4.0787326,2678.0,2677.8,17.24761301]
[1724392704677,3.0,2678.0,2677.8,17.24761301]
[1724392704878,3.0,2678.2,2677.8,19.28006431]
[1724392705099,1.0980326,2678.0,2677.8,17.24761301]
[1724392706071,6.73385,2678.2,2677.8,17.24761301]
[1724392706072,4.0980326,2678.2,2677.9,2.8424]
[1724392706277,1.0980326,2678.2,2677.9,2.8424]
[1724392706657,4.0980326,2678.4,2677.9,2.8424]
[1724392706967,4.0980326,2678.4,2678.0,2.0090013]
[1724392707168,7.8316226,2678.4,2677.9,2.8424]
[1724392707393,4.0980326,2678.4,2677.9,2.8424]
[1724392707893,4.0980326,2678.4,2678.0,17.24761301]
[1724392708576,7.8316226,2678.4,2678.0,17.24761301]
[1724392709501,0.38882116,2678.8,2678.4,3.1255]
[1724392709719,4.12301171,2679.3,2678.5,1.0980326]
[1724392709919,4.12301171,2679.3,2678.7,1.0980326]
[1724392709920,7.85544171,2679.3,2678.7,1.0980326]
[1724392710138,3.73236,2679.3,2678.7,1.0980326]
[1724392710336,3.73267,2679.1,2678.5,1.0980326]
[1724392710470,3.73267,2679.1,2678.6,0.42235326]
[1724392711675,1.0980326,2679.0,2678.4,3.1255]
[1724392712137,0.1290263,2679.7,2679.0,2.9446]
[1724392712398,0.1290263,2679.7,2679.4,2.9446]
[1724392712599,0.1290263,2679.7,2678.6,2.9054]
[1724392712811,3.73239,2679.3,2678.6,2.9054]
[1724392712975,3.7326,2679.1,2678.6,2.9054]
[1724392713175,3.73275,2679.0,2678.0,0.28424]
[1724392713382,3.73281,2679.0,2678.1,2.9054]
[1724392713582,3.73291,2678.9,2678.1,2.9054]
[1724392713847,0.71468989,2679.7,2679.4,3.73216]
[1724392713981,0.1290263,2679.7,2679.1,6.65746]
[1724392714182,0.1290263,2679.7,2679.2,1.039006]
[1724392714487,0.1290263,2679.7,2679.1,2.9249]
[1724392714901,0.1290263,2679.7,2679.1,6.65748]
[1724392715125,0.1290263,2679.7,2679.2,3.73242]
[1724392715281,0.1290263,2679.7,2679.1,2.9249]
[1724392715481,0.1290263,2679.7,2679.2,3.73245]
[1724392715675,0.1290263,2679.7,2679.3,0.665735]
[1724392716380,0.1290263,2679.7,2679.1,2.9249]
[1724392717935,2.8804,2679.6,2678.6,3.73322]
[1724392718081,2.8804,2679.6,2678.1,2.9413]
[1724392718082,2.63318434,2679.0,2678.1,2.9413]
[1724392718287,0.26331843,2679.0,2678.1,2.9413]
[1724392718599,3.73305,2678.8,2677.6,3.1386]
[1724392719021,3.55,2679.2,2677.4,5.0]
[1724392719022,3.73397,2678.2,2677.4,5.0]
[1724392719256,3.73407,2678.1,2676.9,5.0]
[1724392719386,2.63318434,2678.0,2676.9,5.0]
[1724392719586,3.0,2677.9,2676.9,5.0]
[1724392719990,3.7352,2677.3,2676.9,5.0]
[1724392720181,3.7352,2677.3,2675.9,3.73697]
[1724392720182,3.73531,2677.2,2675.9,3.73697]
[1724392720381,6.73531,2677.2,2676.0,0.373697]
[1724392720617,3.73561,2677.0,2676.0,0.373697]
[1724392720911,3.0,2676.9,2676.0,0.373697]
[1724392721114,6.73554,2677.0,2675.7,3.73727]
[1724392721339,2.63318434,2677.5,2675.5,5.0]
[1724392721340,3.73666,2676.2,2675.5,5.0]
[1724392721649,3.0,2676.1,2675.5,5.0]
[1724392722081,3.0,2676.3,2675.1,6.67685]
[1724392722313,6.6443,2676.3,2675.1,6.67685]
[1724392722480,6.6443,2676.3,2675.2,0.667685]
[1724392722881,6.6443,2676.3,2675.1,2.9387]
[1724392723140,3.73722,2675.8,2674.8,5.0]
[1724392723317,3.73692,2676.0,2674.8,8.73848]
[1724392723478,3.73692,2676.0,2674.9,0.873848]
[1724392723683,2.8984,2676.2,2674.9,0.873848]
[1724392723879,2.9078,2676.3,2675.3,6.76062]
[1724392724129,10.92007,2676.6,2675.3,6.76066]
[1724392724130,3.73617,2676.6,2675.3,6.76066]
[1724392724435,2.9557,2676.5,2675.4,0.676066]
[1724392724987,6.69192,2676.5,2675.4,0.676066]
[1724392725293,3.73662,2676.3,2675.4,0.676066]
[1724392725632,3.73662,2676.3,2675.3,3.0228]
[1724392725788,3.69722,2676.3,2675.3,3.0228]
[1724392726494,3.0,2676.2,2675.3,3.0228]
[1724392727019,3.73645,2676.4,2675.3,3.0228]
[1724392727326,3.0,2676.3,2675.4,0.30228]
[1724392727714,6.73652,2676.3,2675.4,0.30228]
[1724392727913,3.73664,2676.2,2675.4,0.30228]
[1724392728112,3.0,2676.1,2674.9,0.873848]
[1724392728326,3.73712,2675.9,2674.9,0.873848]
[1724392728623,3.73746,2675.7,2674.5,5.0]
[1724392728832,3.73764,2675.5,2674.5,5.0]
[1724392728997,3.0,2675.4,2674.5,5.0]
[1724392729197,3.0,2675.4,2674.6,0.79779]
[1724392729433,3.0,2675.4,2674.4,2.9779]
[1724392731447,6.73775,2675.4,2674.4,2.9779]
[1724392731811,3.73794,2675.3,2674.4,2.9779]
[1724392732011,3.0,2675.2,2674.4,2.9779]
[1724392732235,6.73815,2675.2,2674.5,0.29779]
[1724392732391,6.71365,2675.2,2674.5,0.29779]
[1724392733492,2.9755,2675.2,2674.0,20.18411301]
[1724392733693,3.71761,2675.4,2674.2,3.73942]
[1724392733938,3.71761,2675.4,2674.3,0.428942]
[1724392734725,3.0,2675.3,2674.3,0.428942]
[1724392735024,2.9821,2675.3,2674.3,0.428942]
[1724392735411,6.72004,2675.3,2674.3,0.428942]
[1724392737542,6.72004,2675.3,2674.3,17.67655501]
[1724392737697,6.72004,2675.3,2674.4,1.7676555]
[1724392739815,6.70184,2675.3,2674.4,1.7676555]
[1724392740012,3.73804,2675.2,2674.4,1.7676555]
[1724392742040,3.0,2675.1,2674.4,1.7676555]
[1724392742511,6.60634,2675.8,2674.5,3.7197]
[1724392742512,3.0,2675.5,2674.5,3.7197]
[1724392742733,3.73753,2675.6,2674.6,0.54873555]
[1724392742943,3.0,2675.5,2674.6,0.54873555]
[1724392743237,6.73763,2675.5,2674.6,0.54873555]
[1724392743441,6.73763,2675.5,2674.7,17.67445656]
[1724392743627,3.0,2675.5,2674.7,17.67445656]
[1724392743936,6.73772,2675.5,2674.7,17.67445656]
[1724392744313,3.0,2675.5,2674.7,17.67445656]
[1724392744725,3.0,2675.7,2674.7,17.67445656]
[1724392745062,2.9009,2676.2,2674.9,2.9952]
[1724392745212,6.63763,2676.2,2675.0,25.06761301]
[1724392745410,3.73673,2676.2,2675.0,28.80592301]
[1724392745741,3.73653,2676.3,2675.2,3.73794]
[1724392745927,3.73653,2676.3,2675.3,0.55]
[1724392746130,3.73643,2676.4,2675.3,0.55]
[1724392746334,0.39091151,2676.9,2675.9,3.73698]
[1724392746563,0.45789408,2678.0,2676.7,3.0587]
[1724392746853,0.39081343,2677.6,2677.1,3.73525]
[1724392747055,3.73244,2679.3,2677.9,3.73417]
[1724392747265,0.39066021,2679.0,2678.0,3.0587]
[1724392747487,2.9193,2679.5,2678.0,3.0587]
[1724392747488,3.7322,2679.4,2678.0,3.737987]
[1724392747635,0.6317741,2679.7,2678.6,5.74259782]
[1724392747636,0.1290263,2679.7,2678.6,5.74259782]
[1724392747959,0.39058154,2679.8,2679.7,6.83546]
[1724392748155,3.72979,2681.2,2679.7,3.1037]
[1724392748329,3.72984,2681.1,2679.8,0.55]
[1724392748533,6.36842782,2681.4,2679.9,0.36537]
[1724392748534,3.73025,2680.8,2679.9,0.36537]
[1724392748960,3.73039,2680.7,2679.9,0.36537]
[1724392749255,3.73073,2680.5,2679.7,3.1037]
[1724392749457,3.50905748,2681.0,2679.7,3.1037]
[1724392749756,3.73082,2680.4,2679.7,3.1037]
[1724392749956,3.7302,2680.9,2679.8,0.55]
[1724392750156,7.23900748,2681.0,2679.9,0.36537]
[1724392750331,3.73052,2680.6,2679.9,0.36537]
[1724392750922,3.73068,2680.5,2679.9,0.36537]
[1724392751217,3.50905748,2681.0,2679.9,0.36537]
[1724392751218,3.73007,2681.0,2679.9,0.36537]
[1724392751518,3.50905748,2681.4,2680.0,0.55]
[1724392751519,3.72977,2681.2,2680.0,0.55]
[1724392751916,3.72982,2681.1,2680.0,0.55]
[1724392752156,3.72977,2681.2,2680.0,0.55]
[1724392752358,7.23847748,2681.4,2680.0,0.55]
[1724392752571,3.72981,2681.1,2680.0,0.55]
[1724392752934,3.73012,2680.9,2680.0,0.55]
[1724392753159,3.72996,2681.0,2680.0,0.55]
[1724392753552,0.58536072,2680.7,2680.0,0.55]
[1724392754388,0.58536072,2680.7,2679.7,3.1037]
[1724392754703,4.31585072,2680.7,2679.7,3.1037]
[1724392754852,3.0,2680.6,2679.7,3.91407]
[1724392755052,6.73052,2680.6,2679.7,3.91407]
[1724392755258,3.73066,2680.5,2679.7,3.1037]
[1724392755459,3.0,2680.4,2679.7,3.1037]
[1724392756451,6.73082,2680.4,2679.7,3.1037]
[1724392756975,3.73093,2680.3,2679.7,3.1037]
[1724392757181,3.0,2680.2,2679.7,3.1037]
[1724392758661,3.0,2680.2,2679.8,0.07462193]
[1724392758862,3.0,2680.6,2679.9,0.55]
[1724392759062,3.0,2680.6,2679.7,3.41407]
[1724392759063,0.58536072,2680.7,2680.0,0.07460871]
[1724392759257,0.58536072,2680.7,2679.9,17.24761301]
[1724392759563,3.72958,2681.3,2680.1,0.07460715]
[1724392759974,3.72968,2681.2,2680.2,0.55]
[1724392760392,3.72982,2681.1,2680.1,0.55]
[1724392760597,3.0,2681.0,2680.1,0.55]
[1724392760765,3.0,2681.0,2680.2,0.23297613]
[1724392760978,3.0,2681.0,2680.1,0.55]
[1724392761268,3.73046,2680.7,2679.9,17.24761301]
[1724392761532,3.73046,2680.7,2679.5,17.24761301]
[1724392761533,3.73051,2680.6,2679.5,17.24761301]
[1724392761655,3.73051,2680.6,2679.0,3.73267]
[1724392761656,3.73095,2680.3,2679.7,8.1037]
[1724392762057,6.73115,2680.2,2679.7,3.1037]
[1724392762259,3.7312,2680.1,2679.2,3.1673]
[1724392763096,3.73149,2679.9,2679.2,3.1673]
[1724392763304,3.0,2680.0,2679.2,3.1673]
[1724392763509,6.73134,2680.0,2679.2,3.48403]
[1724392763912,3.73152,2679.9,2679.2,3.48403]